Cogmind - Beta 14 @@@ ROGUE MODE // 2025.01.14 @ 18:52:02 Player: Cog on my mind Result: Self-destructed Performance ------------- Evolutions (6) 3000 Regions Visited (28) 5600 Robots Destroyed (433) 2165 Value Destroyed (19033) 19033 Prototype IDs (79) 1580 Alien Tech Used (1) 200 Bonus (6337) 6337 TOTAL SCORE: 37915 Bonus ------- High Alert Combat Kills 2252 Follower Combat Kills 2268 Entered Garrisons 600 Network Hubs Disabled 200 Aligned with FarCom 300 Met Data Miner 300 Acquired ECA 300 Met Zhirov 300 Built Enhanced Grunts 300 A7 Reached Mainframe 300 Met R17 at Cetus 500 Friendly Fire -1283 Cogmind --------- Core Integrity 856/1150 Matter 76/300 Energy 325/325 System Corruption 9% Temperature Cool (76) Movement Walking (120) Location -4/Factory Parts ------- > --- POWER (2) -------- Antimatter Reactor > --- PROPULSION (6) --- Myomer Leg Advanced Myomer Leg Advanced Myomer Leg Advanced Myomer Leg > --- UTILITY (7) ------ Advanced Coolant Injector High-capacity Storage Unit Experimental Terrain Scan Processor Layered Heavy Armor Plating > --- WEAPON (4) ------- KE Penetrator Enhanced Coil Gun Enhanced Coil Gun Heavy Gauss Cannon > --- INVENTORY (20) --- Advanced Energy Well (500) Matter Compressor (0) Encrypted Comm Array Hardened Heavy Armor Plating Centrium Medium Armor Plating Improved Force Field Point Defense Array Advanced System Shield Improved Trap Extractor (5/6 Fire) Transdimensional Reconstructor Cooled Plasma Cannon Hypervelocity Coil Gun Hypervelocity Gauss Cannon Hypervelocity Gauss Cannon Smartbomb Launcher Improved Remote Datajack Field Lobotomy Kit (3) Peak State ------------ > --- POWER ------------ Fusion Reactor Antimatter Reactor > --- PROPULSION ------- Myomer Leg Myomer Leg Myomer Leg Advanced Myomer Leg Advanced Myomer Leg Advanced Myomer Leg > --- UTILITY ---------- Advanced Cryofiber Web Advanced Coolant Injector High-capacity Storage Unit Improved Terrain Scanner Experimental Terrain Scan Processor Experimental Targeting Computer Centrium Medium Armor Plating > --- WEAPON ----------- Enhanced Coil Gun Enhanced Coil Gun Enhanced Coil Gun Heavy Gauss Cannon > --- INVENTORY -------- Advanced Energy Well Matter Compressor Encrypted Comm Array Hardened Heavy Armor Plating Centrium Medium Armor Plating Improved Force Field Point Defense Array Advanced System Shield Improved Trap Extractor Transdimensional Reconstructor Cooled Plasma Cannon Hypervelocity Coil Gun Hypervelocity Gauss Cannon Hypervelocity Gauss Cannon Smartbomb Launcher Improved Remote Datajack Field Lobotomy Kit [Rating: 140] Favorites ----------- Power Improved Deuterium Engine Engine Improved Deuterium Engine Power Core Enhanced Fission Core Reactor Fusion Reactor Propulsion Armored Wheel Treads Centrium Heavy Treads Leg Enhanced Flexi-carbon Leg Wheel Armored Wheel Hover Unit Gravmag System Utility High-capacity Storage Unit Device Improved Cooling System Storage High-capacity Storage Unit Processor Advanced Targeting Computer Hackware Hacking Suite Protection Layered Light Armor Plating Weapon Gatling Laser Energy Gun Gatling Laser Energy Cannon Neutron Cannon Ballistic Gun KE Penetrator Ballistic Cannon Enhanced Gauss Cannon Launcher Long-range Missile Launcher Special Weapon Improved Remote Datajack Impact Weapon Powered Hammer Slashing Weapon Katana Build | -11 -10 -10 -9 -9 -9 -8 -8 -8 -8 -7 -7 -7 -7 -7 -7 -6 -6 -6 -6 -6 -6 -6 -5 -5 -5 -5 -4 -4 ------- Run | Yrd Mat Min Mat Min Exi Min Mat Gar Mat Fac Gar Fac Low Low Dat Pro Fac Ext Cet Arc Hub Gar Fac Upp Upp Zhi Pro Fac Slots Evolved 12 | . . . 2 . . . 2 . . 2 . . . . . . 2 . . . . . 2 . . . . 2 Power 1 | . . . . . . . . . . . . . . . . . . . . . . . . . . . . 1 Propulsion 4 | . . . . . . . 1 . . 1 . . . . . . . . . . . . 1 . . . . 1 Utility 5 | . . . 2 . . . . . . . . . . . . . 2 . . . . . 1 . . . . . Weapon 2 | . . . . . . . 1 . . 1 . . . . . . . . . . . . . . . . . . Parts Attached 502 | 7 5 15 26 3 4 4 28 24 17 41 23 49 6 7 4 4 50 25 13 1 6 17 64 9 12 9 3 26 Power 28 | 1 . 1 4 . . . 2 . 2 1 4 4 . . . . 1 . 1 . . 1 3 . 1 1 . 1 Engine 15 | 1 . 1 4 . . . 2 . 1 . 2 4 . . . . . . . . . . . . . . . . Core 8 | . . . . . . . . . 1 1 2 . . . . . 1 . . . . . 2 . 1 . . . Reactor 5 | . . . . . . . . . . . . . . . . . . . 1 . . 1 1 . . 1 . 1 Propulsion 94 | 2 2 . 3 . . . 6 4 7 6 5 9 1 1 . 1 5 8 4 . . 3 17 . 4 3 . 3 Treads 15 | . . . . . . . 3 . 1 . . . . 1 . . 1 . . . . 1 7 . 1 . . . Leg 45 | 2 . . . . . . . . 3 5 3 . . . . . 1 6 4 . . 2 10 . 3 3 . 3 Wheel 32 | . 2 . 3 . . . 3 2 3 1 2 9 1 . . 1 3 2 . . . . . . . . . . Hover 2 | . . . . . . . . 2 . . . . . . . . . . . . . . . . . . . . Flight . | . . . . . . . . . . . . . . . . . . . . . . . . . . . . . Utility 169 | 2 1 9 10 . 2 2 8 3 6 10 7 13 2 2 . 1 24 10 4 1 2 7 21 6 2 2 . 12 Device 76 | 1 . 6 4 . 1 . . 1 1 2 2 6 2 2 . 1 7 8 2 . 1 3 13 4 2 1 . 6 Storage 10 | 1 1 . . . 1 . 1 . . . . . . . . . 1 . 1 . 1 . . 2 . . . 1 Processor 12 | . . . . . . . 2 . . 1 1 1 . . . . 3 . . . . 1 2 . . . . 1 Hackware 10 | . . . 1 . . . 1 . . 2 . . . . . . 2 . . 1 . 1 2 . . . . . Protection 61 | . . 3 5 . . 2 4 2 5 5 4 6 . . . . 11 2 1 . . 2 4 . . 1 . 4 Artifact . | . . . . . . . . . . . . . . . . . . . . . . . . . . . . . Weapon 211 | 2 2 5 9 3 2 2 12 17 2 24 7 23 3 4 4 2 20 7 4 . 4 6 23 3 5 3 3 10 Energy Gun 58 | . 2 3 6 2 . . . . . . . 12 2 2 4 1 13 4 2 . 2 1 2 . . . . . Energy Cannon 17 | . . . . . . . . . . . . 1 . . . . 1 3 2 . 1 2 7 . . . . . Ballistic Gun 78 | 2 . . 1 1 2 1 9 9 2 18 3 5 . 1 . . . . . . . . 8 3 2 2 2 7 Ballistic Cannon 14 | . . 1 . . . . . 2 . 1 . . . . . . . . . . . 1 5 . . 1 1 2 Launcher 14 | . . 1 2 . . 1 . 2 . . 2 . 1 1 . 1 . . . . . 1 . . 2 . . . Special Weapon 6 | . . . . . . . . 1 . . . . . . . . . . . . 1 1 1 . 1 . . 1 Impact Weapon 9 | . . . . . . . . . . . . 3 . . . . 6 . . . . . . . . . . . Slashing Weapon 15 | . . . . . . . 3 3 . 5 2 2 . . . . . . . . . . . . . . . . Piercing Weapon . | . . . . . . . . . . . . . . . . . . . . . . . . . . . . . Special Melee Weapon . | . . . . . . . . . . . . . . . . . . . . . . . . . . . . . Unidentified Prototypes 28 | . 1 1 2 . . . 1 . . 1 . 2 . . . . 3 . 6 . 1 1 2 . . 4 . 3 Corrupted Parts 4 | . . 1 . . . . . . . . . . . . . . . . 1 . . 1 1 . . . . . System Corruption 13 | . . 1 . . . . . . . . . . . . . . . . 1 . . 1 10 . . . . . Parts Lost 72 | . . 3 4 . . 1 3 8 4 1 11 5 1 1 . . 1 1 . . . 1 15 . 3 . . 9 Power 10 | . . 1 . . . . 2 . 2 1 1 1 . . . . . . . . . . 1 . . . . 1 Propulsion 20 | . . . 1 . . . . 2 1 . 4 1 1 1 . . 1 . . . . . 6 . . . . 2 Utility 26 | . . . 2 . . 1 1 3 1 . 3 2 . . . . . . . . . 1 5 . 2 . . 5 Weapon 16 | . . 2 1 . . . . 3 . . 3 1 . . . . . 1 . . . . 3 . 1 . . 1 Highest Loss Streak 7 | . . 2 2 . . 1 1 3 3 1 7 3 1 1 . . 1 1 . . . 1 7 . 3 . . 3 To Critical Strikes 1 | . . . . . . . . . . . . . . . . . . . . . . . . . . . . 1 Average Slot Usage (%) 93 | . 100 94 98 100 77 100 99 95 87 97 96 99 91 90 64 92 90 98 99 100 100 99 87 86 80 53 79 86 Engine 4 | . 14 8 10 11 11 11 8 9 8 1 4 6 7 7 7 7 . . . . . . . . . . . . Core 1 | . . . . . . . . . . 3 1 . . . . . 5 6 . . . . 2 5 5 3 . . Reactor 1 | . . . . . . . . . . . . . . . . . . . 5 6 6 5 2 . . 1 5 5 Treads 3 | . . . . . . . 7 2 2 . . . . 5 7 2 . . . . . . 6 17 16 13 5 2 Leg 9 | . 6 . . . . . . . 3 21 16 . . . . . . 19 26 26 26 25 17 . . 5 17 23 Wheel 12 | . 21 28 21 22 22 22 18 17 17 8 11 29 22 15 15 20 17 5 . . . . . . . . . . Device 8 | . 14 11 13 11 11 2 . 4 . . 5 7 7 7 7 7 6 10 7 13 13 8 12 21 15 7 11 11 Storage 8 | . 14 14 11 11 11 11 9 9 9 7 7 7 7 7 7 7 6 6 6 6 6 6 5 10 11 11 11 7 Processor 4 | . . . . . . . 8 9 4 . 5 7 7 7 7 7 6 6 6 6 6 6 2 5 5 5 5 8 Hackware 4 | . . . 8 11 11 11 9 . . 12 3 . . . . . 11 12 6 6 6 4 7 . . . . . Protection 7 | . . 2 10 11 11 19 9 9 12 8 7 6 7 7 7 7 7 2 10 6 6 12 5 . . 1 5 4 Energy Gun 10 | . 26 26 21 22 . . . . . . . 19 29 29 3 29 25 25 23 13 13 12 3 . . . . . Energy Cannon 1 | . . . . . . . . . . . . . . . . . . . 2 13 12 12 8 . . . . . Ballistic Gun 10 | . 1 . . . . 21 26 21 25 29 25 6 . . . . . . . . . . 6 17 16 . 9 13 Ballistic Cannon 1 | . . . . . . . . 5 1 . . . . . . . . . . . . . 1 5 5 . 4 6 Peak Build Rating 140 | 7 15 21 23 25 26 26 38 38 40 58 56 52 51 51 51 51 67 81 102 104 105 109 122 118 115 97 94 140 Average Rating 63 | 5 13 15 20 22 18 25 34 37 35 48 48 47 50 50 35 50 59 73 91 103 102 106 107 114 108 78 91 118 On Entrance 56 | . 7 15 16 22 22 26 26 38 38 30 56 40 50 51 51 51 51 63 81 102 104 102 106 98 110 97 94 94 Naked Turns . | . . . . . . . . . . . . . . . . . . . . . . . . . . . . . Heaviest Build 118 | 13 32 36 48 42 62 66 68 80 80 72 77 75 75 78 72 72 92 98 108 102 102 112 118 97 89 82 82 110 Greatest Support 187 | 20 24 24 24 24 24 24 36 24 24 72 72 56 56 56 44 54 60 82 112 112 112 112 187 187 187 187 90 165 Greatest Overweight (x) 5 | . 1 1 1 1 2 2 2 3 5 3 3 2 1 1 1 1 2 1 1 . . 1 1 . . 1 . . Average Overweight (x) . | . . 1 1 1 1 2 1 2 2 1 1 1 1 1 1 1 1 . . . . . . . . . . . Largest Inventory Capacity 20 | 8 15 15 15 15 20 20 20 20 20 20 20 20 20 20 20 20 20 20 20 20 20 20 20 20 20 20 20 20 Average Capacity 19 | 7 12 15 15 15 16 20 20 20 20 20 20 20 20 20 20 20 20 20 20 20 20 20 20 20 20 20 20 20 Most Carried 20 | 3 15 15 15 15 17 15 20 20 20 20 20 20 20 20 20 20 20 20 20 20 20 20 20 20 20 20 20 20 Average Carried 17 | 1 8 14 14 14 14 14 18 16 16 18 15 18 18 18 20 20 19 19 19 19 19 19 18 17 19 19 20 19 Final Capacity 20 | 8 15 15 15 15 20 20 20 20 20 20 20 20 20 20 20 20 20 20 20 20 20 20 20 20 20 20 20 20 Final Carried 20 | 3 15 15 14 14 15 15 20 16 13 20 14 16 20 20 20 20 19 18 20 20 19 20 20 20 20 20 20 19 Class Distribution -------------------- 26% | Skirmisher 14% | Hacker-Skirmisher 10% | Mutant 9% | Gunner 9% | Scavenger-Skirmisher 6% | Tank 5% | Trapper-Gunner 5% | Scavenger-Gunner 3% | Scavenger-Tank 3% | Commander-Mutant 3% | Trapper-Skirmisher Dominant Class ---------------- Mutant | -10/Materials Mutant | -10/Mines Mutant | -9/Materials Mutant | -9/Mines Commander-Mutant | -9/Exiles Commander-Mutant | -8/Mines Skirmisher | -8/Materials Skirmisher | -8/Garrison Skirmisher | -8/Materials Hacker-Skirmisher | -7/Factory Scavenger-Skirmisher | -7/Garrison Skirmisher | -7/Factory Gunner | -7/Lower Caves Gunner | -7/Lower Caves Mutant | -7/Data Miner Gunner | -6/Proximity Caves Hacker-Skirmisher | -6/Factory Hacker-Skirmisher | -6/Extension Tank | -6/Cetus Scavenger-Gunner | -6/Archives Scavenger-Skirmisher | -6/Hub_04(d) Scavenger-Tank | -6/Garrison Scavenger-Skirmisher | -5/Factory Scavenger-Gunner | -5/Upper Caves Trapper-Gunner | -5/Upper Caves Trapper-Mutant | -5/Zhirov Trapper-Gunner | -4/Proximity Caves Skirmisher | -4/Factory Resources | -11 -10 -10 -9 -9 -9 -8 -8 -8 -8 -7 -7 -7 -7 -7 -7 -6 -6 -6 -6 -6 -6 -6 -5 -5 -5 -5 -4 -4 ----------- Run | Yrd Mat Min Mat Min Exi Min Mat Gar Mat Fac Gar Fac Low Low Dat Pro Fac Ext Cet Arc Hub Gar Fac Upp Upp Zhi Pro Fac Matter Collected 12479 | 286 64 139 311 96 . 170 1168 912 700 1228 1240 883 137 122 . 109 764 298 163 10 60 230 1086 536 703 . 231 833 Remotely . | . . . . . . . . . . . . . . . . . . . . . . . . . . . . . Salvage Created 18248 | 103 693 244 826 . . 217 1467 807 668 1362 1192 1174 323 291 . 185 1206 822 249 291 942 898 1350 277 587 . 116 1958 Parts 904 | 10 40 21 63 . . 8 85 45 44 76 52 63 10 12 . 8 42 20 6 17 52 43 84 6 12 . 3 82 Haulers Intercepted 18 | . 1 . 3 . . . 1 . 1 2 . 1 . . . . 5 1 . . 1 . 1 . . . . 1 Recyclers Shooed 9 | . . . . . . . . . . 1 . . . . . . . . . . . . 3 . . . . 5 Parts Field Recycled . | . . . . . . . . . . . . . . . . . . . . . . . . . . . . . Retrieved Matter . | . . . . . . . . . . . . . . . . . . . . . . . . . . . . . Parts Self-Destructed 82 | . . . . . . . . . . . . . 10 22 . 22 . . . . . . . 7 10 . 11 . Prevented 9 | . . . . . . . . . . . . . . 6 . . . . . . . . . . 3 . . . Kills | -11 -10 -10 -9 -9 -9 -8 -8 -8 -8 -7 -7 -7 -7 -7 -7 -6 -6 -6 -6 -6 -6 -6 -5 -5 -5 -5 -4 -4 ------- Run | Yrd Mat Min Mat Min Exi Min Mat Gar Mat Fac Gar Fac Low Low Dat Pro Fac Ext Cet Arc Hub Gar Fac Upp Upp Zhi Pro Fac Combat Hostiles Destroyed 309 | . 13 9 22 . . 4 28 21 14 12 25 17 9 8 . 5 13 6 4 3 7 25 22 5 16 . 1 20 Melee 3 | . . . . . . . . . . . 2 . . . . . . . . . . . 1 . . . . . Guns 221 | . 10 5 19 . . 1 28 16 13 11 22 17 6 6 . 4 11 4 3 1 3 6 11 5 3 . 1 15 Cannons 36 | . . 1 . . . . . 2 1 . . . . . . . . . . 2 4 9 9 . 4 . . 4 AOE 42 | . 3 3 2 . . 3 . 3 . 1 1 . 2 2 . 1 . . . . . 10 1 . 9 . . 1 Classes Destroyed 18 | 2 6 . 1 . . 1 2 1 . . . . 1 2 . 1 . . . . . . 1 . . . . . Worker 16 | . 1 1 2 . . . 2 . . 3 . . . . . . 1 . . . 2 . . . . . . 4 Builder 13 | . . . . . . . 1 . 1 3 . 1 . . . . 1 . . . 3 . 2 . . . . 1 Tunneler 7 | 3 . 1 . . . 1 1 . . . . 1 . . . . . . . . . . . . . . . . Hauler 18 | . 1 . 3 . . . 1 . 1 2 . 1 . . . . 5 1 . . 1 . 1 . . . . 1 Recycler 23 | 1 . . . . . 1 . . . 6 . 4 . . . . 1 2 . . 2 . . . . . . 6 Minesweeper 5 | . . . . . . . . . . . . . 1 1 . 2 . . . . . . . 1 . . . . Mechanic 2 | . . . . . . . . . . . . . . 1 . . . . . . . . 1 . . . . . Operator 12 | . 2 . 1 . . . . . 1 1 . 1 . . . . . 1 . 2 1 . 1 . . . . 1 Drone 2 | . . . . . . . . . . . . . . . . 2 . . . . . . . . . . . . Watcher 25 | . 2 . 3 . . . 4 . 4 2 . 2 . . . . 2 1 1 . . . 2 . . . . 2 Swarmer 65 | . 3 6 2 . . . 5 3 6 . 6 3 3 4 . . 3 . . . 1 8 4 . 4 . . 4 Saboteur 1 | . . . . . . . . . . . . . . . . . . . . . . . 1 . . . . . Grunt 116 | . 10 3 12 . . 4 15 9 6 9 10 1 4 2 . 2 4 1 . . 2 7 6 . 7 . . 2 Brawler 7 | . . . . . . . . . . . . . . 1 . 1 . . . . 2 . 1 1 1 . . . Duelist 14 | . . . . . . . 2 1 . . 2 2 1 . . . 1 . . . . . 1 1 2 . 1 . Sentry 55 | . . . 8 . . . 6 2 2 1 4 4 1 . . . 2 5 . 3 1 6 1 1 2 . . 6 Hunter 10 | . . . . . . 1 . 2 . . . 2 . 1 . . . . . . . 1 1 1 . . 1 . Programmer 37 | . . . . . . . . 4 . 2 3 5 . . . . 3 . . . 1 3 7 1 . . . 8 Cetus Guard 4 | . . . . . . . . . . . . . . . . . . . 4 . . . . . . . . . Enhanced Grunt 1 | . . . . . . . . . . . . . . . . . . . . . 1 . . . . . . . Decomposer 1 | . . . . . . . . . . . . . . 1 . . . . . . . . . . . . . . Best Kill Streak 13 | 4 4 4 10 . . 3 8 3 7 5 5 4 4 4 . 3 3 2 4 3 3 12 7 3 7 . 1 13 Combat Bots Only 12 | . 3 3 9 . . 3 7 3 7 3 5 3 4 4 . 2 2 1 3 3 3 12 6 3 7 . 1 8 Max Kills in Single Turn 5 | 1 3 1 2 . . 1 2 3 2 2 1 2 2 2 . 2 2 1 3 1 2 5 2 1 3 . 1 3 Gunslinging 1 | . . . . . . . 1 . 1 . . . . . . 1 1 . 1 . . . . . . . . 1 Exploded 5 | . 1 1 1 . . 1 . 3 . 1 1 . 2 1 . 1 . . . . . 5 1 . 3 . . 1 Melee 1 | . . . . . . . . . . . 1 . . . . . . . . . . . 1 . . . . . Uniques/NPCs Destroyed . | . . . . . . . . . . . . . . . . . . . . . . . . . . . . . Combat | -11 -10 -10 -9 -9 -9 -8 -8 -8 -8 -7 -7 -7 -7 -7 -7 -6 -6 -6 -6 -6 -6 -6 -5 -5 -5 -5 -4 -4 -------- Run | Yrd Mat Min Mat Min Exi Min Mat Gar Mat Fac Gar Fac Low Low Dat Pro Fac Ext Cet Arc Hub Gar Fac Upp Upp Zhi Pro Fac Hostile Shots Fired 2049 | . 39 36 108 6 . 28 126 137 102 31 319 127 16 22 . 14 62 90 13 . 33 172 246 28 82 . 14 198 Missed 603 | . 14 14 34 3 . 7 32 38 19 11 105 40 7 5 . 2 24 34 6 . 10 45 56 10 23 . 4 60 Damage Taken 22997 | . 288 252 988 41 . 396 1458 1436 887 468 2657 1475 168 330 . 251 501 703 229 53 425 1492 3669 520 1205 . 218 2887 Core 2885 | . 73 34 155 12 . 48 215 159 128 77 285 168 18 74 . 36 25 118 16 . 79 115 377 152 178 . 49 294 Absorbed by Shields 295 | . . . . . . . . 152 . . 62 . . . . . . 10 71 . . . . . . . . . Reduced by Siege Mode 6 | . . . . . . . . . . . . . . . . . . . . . . . 6 . . . . . Redirected to Shielding 61 | . . . . . . . . . . . . . . . . . . . . . . . . . . . 61 . Ignored by Resistances 476 | . . . . . . . . 2 46 . . . . . . . 25 18 75 . . . 310 . . . . . Regen/Repaired (Parts) 1164 | . . . 312 . . . 181 . 74 . . . . . . . . . . . . . . . . . . 597 Core Remaining (%) 42 | 100 . 57 . . . 46 . . 8 . . . . . . 6 . . . . . 58 . . . . 24 . Volleys Fired 944 | 15 34 18 63 1 . 17 87 73 54 43 74 49 13 10 . 11 33 29 7 26 21 63 85 13 23 . 7 75 Largest 4 | 2 2 2 2 2 . 2 3 3 3 4 4 4 4 4 . 4 4 4 4 4 4 4 4 4 4 . 3 4 Hottest 350 | 40 90 90 130 130 . 46 73 121 121 127 127 310 310 310 . 310 310 300 290 310 325 325 350 153 153 . 115 183 Shots Fired 2596 | 30 68 30 121 4 . 26 261 195 136 171 218 137 49 32 . 41 125 100 27 60 70 133 214 54 56 . 22 216 Gun 2189 | 30 68 26 116 4 . 18 261 167 130 171 210 129 48 29 . 40 125 98 27 52 39 49 124 41 33 . 15 139 Cannon 357 | . . 1 . . . . . 25 6 . . 8 . . . . . 2 . 8 30 78 89 13 14 . 7 76 Launcher 43 | . . 3 5 . . 8 . 3 . . 8 . 1 3 . 1 . . . . . 4 . . 7 . . . Special 7 | . . . . . . . . . . . . . . . . . . . . . 1 2 1 . 2 . . 1 Kinetic 1492 | 30 . 1 . . . 18 261 192 136 171 210 25 . . . . . . . . . . 110 54 47 . 22 215 Thermal 952 | . . . 108 4 . . . . . . . 112 48 29 . 40 125 100 27 60 69 127 103 . . . . . Explosive 35 | . . 3 5 . . 8 . 3 . . . . 1 3 . 1 . . . . . 4 . . 7 . . . Electromagnetic 110 | . 68 26 8 . . . . . . . 8 . . . . . . . . . . . . . . . . . Robot Hit Streak 24 | 11 6 5 16 5 . 6 23 16 8 10 13 17 12 9 . 24 22 14 21 14 18 16 16 7 9 . 11 15 Robot Miss Streak 8 | 1 6 5 8 2 . 2 5 5 5 4 4 5 3 3 . 4 3 2 1 5 2 3 7 4 2 . 2 5 Penetration Max 2 | . . . . . . . . . . 1 1 . . . . . . . . . . . 1 1 1 . . 2 Secondary Targets 41 | . 2 . 1 . . . 7 2 4 2 9 3 . . . 2 3 . 1 . 1 . 1 . . . . 3 Max Gunslinging Chain 2 | . 1 . 1 . . . 1 1 1 1 1 1 . . . 2 1 . 1 . 1 . 1 . . . . 1 Shots Hit Robots 1625 | 21 50 20 103 4 . 18 182 107 66 94 120 90 35 17 . 32 92 75 23 37 43 76 119 31 38 . 15 117 Core Hits 953 | 8 30 17 137 4 . 14 72 39 35 41 50 79 26 23 . 25 63 22 8 17 25 47 61 10 29 . 6 65 Critical Kills 13 | . . . . . . . . . 1 1 3 . . . . . . . . . . . 1 . . . 1 6 Critical Parts Destroyed 19 | . . . . . . . . 1 . 1 3 . . . . . . . . . . 2 . 2 1 . 1 8 Critical Strikes 66 | . . . . . . . . 3 2 2 7 3 . . . 1 . 9 1 1 3 4 1 5 5 . 3 16 Burn 20 | . . . . . . . . . . . . 3 . . . 1 . 9 1 1 3 2 . . . . . . Destroy 33 | . . . . . . . . 1 1 2 6 . . . . . . . . . . 2 1 3 1 . 2 14 Blast 12 | . . . . . . . . 2 1 . . . . . . . . . . . . . . 2 4 . 1 2 Sever 1 | . . . . . . . . . . . 1 . . . . . . . . . . . . . . . . . Melee Attacks 59 | . . . . . . . 5 5 . 14 9 17 . . . . 9 . . . . . . . . . . . Impact 21 | . . . . . . . . . . . . 12 . . . . 9 . . . . . . . . . . . Slashing 38 | . . . . . . . 5 5 . 14 9 5 . . . . . . . . . . . . . . . . Piercing . | . . . . . . . . . . . . . . . . . . . . . . . . . . . . . Sneak Attacks 4 | . . . . . . . . . . 1 . 3 . . . . . . . . . . . . . . . . Combat Hostiles . | . . . . . . . . . . . . . . . . . . . . . . . . . . . . . Follow-up Attacks . | . . . . . . . . . . . . . . . . . . . . . . . . . . . . . Damage Inflicted 45330 | 193 1071 541 1801 54 . 703 3047 2213 1332 2373 3248 2387 969 740 . 788 2360 1737 583 1216 1750 4259 3996 915 2256 . 330 4468 Guns 32334 | 193 742 276 1344 54 . 180 3047 1671 1226 2172 2930 2186 765 463 . 773 2360 1669 583 925 870 993 2309 701 645 . 194 3063 Cannons 6566 | . . 28 . . . . . 345 106 . . . . . . . . 68 . 231 726 1849 1523 214 436 . 136 904 Explosions 6044 | . 329 237 457 . . 523 . 197 . 129 182 23 204 277 . 15 . . . 60 154 1417 164 . 1175 . . 501 Melee 386 | . . . . . . . . . . 72 136 178 . . . . . . . . . . . . . . . . Ramming . | . . . . . . . . . . . . . . . . . . . . . . . . . . . . . Kinetic 20385 | 193 . 28 . . . 180 3047 2016 1332 2172 2930 375 . . . . . . . . . . 1819 915 1081 . 330 3967 Thermal 18424 | . 329 36 1342 54 . . . . . 129 . 1811 765 463 . 773 2360 1737 583 1156 1657 2889 2013 . . . . 327 Explosive 4480 | . . 201 344 . . 523 . 197 . . . . 204 277 . 15 . . . . . 1370 . . 1175 . . 174 Electromagnetic 1655 | . 742 276 115 . . . . . . . 182 23 . . . . . . . 60 93 . 164 . . . . . Impact . | . . . . . . . . . . . . . . . . . . . . . . . . . . . . . Slashing 386 | . . . . . . . . . . 72 136 178 . . . . . . . . . . . . . . . . Piercing . | . . . . . . . . . . . . . . . . . . . . . . . . . . . . . Highest Corruption 25 | . . 1 2 2 2 2 . 6 8 . 1 3 1 2 2 2 2 2 1 1 2 5 25 25 25 25 25 9 Average Corruption 6 | . . 1 2 2 2 2 . 4 6 . 1 1 1 1 2 2 1 1 1 1 1 3 12 25 25 25 25 2 Corruption Purged 8 | . . . . . . . . . . . . 3 . . . . 2 2 . . . . 1 . . . . . Corruption Blocked . | . . . . . . . . . . . . . . . . . . . . . . . . . . . . . Effects 460 | . . . 19 10 8 5 . 20 35 . 8 34 7 10 1 10 11 15 3 . 3 28 67 51 59 8 28 20 Message Errors 120 | . . . 7 3 1 2 . 5 6 . 1 8 . 1 1 2 2 3 . . 1 9 13 23 18 3 9 2 Matter Fused 106 | . . . 4 2 1 . . 7 8 . 1 7 2 2 . 3 4 4 3 . . 8 20 10 10 1 7 2 Heat Flow Errors 44 | . . . 2 . . . . . 6 . 1 5 1 1 . . . 2 . . . 2 7 4 7 2 2 2 Energy Discharges 45 | . . . . 2 2 1 . 3 1 . 2 4 . 1 . . 1 1 . . 1 2 5 3 6 . 4 6 Parts Rejected 11 | . . . . . . . . 1 3 . 1 . 1 . . . . . . . 1 . 3 . 1 . . . Parts Fused 5 | . . . . . . . . 1 . . . . 1 . . . . . . . . . 1 1 . . . 1 Data Loss (minor) 69 | . . . 4 1 3 1 . 3 2 . 2 5 1 3 . 3 3 4 . . . 5 6 4 10 1 4 4 Data Loss (major) 24 | . . . 2 . 1 1 . . 4 . . 3 . 1 . 1 . 1 . . . . 2 2 3 . 1 2 Misfires 12 | . . . . 2 . . . . 1 . . . 1 1 . . 1 . . . . . 2 3 . . 1 . Alerts 10 | . . . . . . . . . 1 . . 2 . . . 1 . . . . . 1 4 . . 1 . . Misdirections 2 | . . . . . . . . . . . . . . . . . . . . . . . 1 . 1 . . . Weapon Failures 12 | . . . . . . . . . 3 . . . . . . . . . . . . 1 3 1 3 . . 1 Overload Shots 2 | . . . . . . . . . . . . . . . . . . 2 . . . . . . . . . . Overflow Damage 812 | . 3 . 2 . . 4 . . . 32 6 58 52 14 . . . 48 . 23 11 134 190 28 72 . . 135 Projectiles 313 | . . . . . . . . . . . . . . . . . . 48 . . 11 102 100 28 19 . . 5 Explosions 409 | . 3 . 2 . . 4 . . . . 6 . 52 14 . . . . . 23 . 32 90 . 53 . . 130 Melee 90 | . . . . . . . . . . 32 . 58 . . . . . . . . . . . . . . . . Knockbacks 21 | . . . . . . . . 1 . . . . . . . . . . . . . . 5 3 2 . 2 8 Impact . | . . . . . . . . . . . . . . . . . . . . . . . . . . . . . Kinetic 19 | . . . . . . . . 1 . . . . . . . . . . . . . . 5 3 2 . 2 6 Secondary 2 | . . . . . . . . . . . . . . . . . . . . . . . . . . . . 2 Self-Inflicted Damage 642 | . . . 20 . . 43 . 20 . 78 35 . . . . 19 . . . . 106 . 139 . 84 . . 98 Shots 16 | . . . 1 . . 1 . 1 . 1 3 . . . . 1 . . . . 1 . 3 . 2 . . 2 Rammed . | . . . . . . . . . . . . . . . . . . . . . . . . . . . . . Targets Rammed . | . . . . . . . . . . . . . . . . . . . . . . . . . . . . . Kicked . | . . . . . . . . . . . . . . . . . . . . . . . . . . . . . Crushed . | . . . . . . . . . . . . . . . . . . . . . . . . . . . . . Highest Temperature 568 | . 216 271 311 72 . 61 274 353 568 257 294 280 233 112 . 380 438 400 299 180 342 452 470 541 261 199 292 192 Average Temperature 109 | . 71 96 108 28 . 38 51 95 158 73 97 102 88 59 . 134 122 137 151 99 132 170 130 149 69 90 133 75 Received Heat Transfer 5109 | . 150 123 459 18 . 99 630 302 279 126 772 81 45 45 . 102 84 284 36 9 36 463 567 63 210 . 9 117 Effects 49 | . . . 3 . . . 2 1 12 3 . . 3 . . 4 1 1 2 . . 5 6 6 . . . . Shutdowns 5 | . . . . . . . . . 2 . . . . . . . 1 1 . . . 1 . . . . . . Energy Bleed 9 | . . . 1 . . . . 1 2 . . . . . . 1 . . . . . 1 2 1 . . . . Interference 27 | . . . 2 . . . 2 . 4 3 . . 3 . . 3 . . 2 . . 3 3 2 . . . . Matter Decay 2 | . . . . . . . . . . . . . . . . . . . . . . . . 2 . . . . Short Circuit 1 | . . . . . . . . . 1 . . . . . . . . . . . . . . . . . . . Damage (minor) 1 | . . . . . . . . . . . . . . . . . . . . . . . 1 . . . . . Damage (major) 3 | . . . . . . . . . 3 . . . . . . . . . . . . . . . . . . . Damage (core) 1 | . . . . . . . . . . . . . . . . . . . . . . . . 1 . . . . Siege Activations 1 | . . . . . . . . . . . . . . . . . . . . . . . 1 . . . . . Total Turns 8 | . . . . . . . . . . . . . . . . . . . . . . . 8 . . . . . Longest Duration 8 | . . . . . . . . . . . . . . . . . . . . . . . 8 . . . . . Robots Corrupted 2 | . . . 1 . . . . . . . . . . . . . . . . . 1 . . . . . . . Combat Hostiles 1 | . . . 1 . . . . . . . . . . . . . . . . . . . . . . . . . Parts Fried 7 | . 2 . 3 . . . . . . . . . . . . . . . . . . . 2 . . . . . Impact Corruptions . | . . . . . . . . . . . . . . . . . . . . . . . . . . . . . Robots Melted 9 | . . . . . . . . . . . . . 1 . . . 3 4 1 . . . . . . . . . Combat Hostiles 6 | . . . . . . . . . . . . . 1 . . . 2 2 1 . . . . . . . . . Parts Melted 54 | . . . . . . . . . . . . 5 4 1 . 1 17 17 2 1 3 . 2 . . . . 1 Heat Transferred 26159 | . 400 50 1630 65 . . . . . 100 . 3049 1597 1012 . 1746 4839 4481 1142 1332 1419 1480 1567 . . . . 250 Parts Sabotaged 2 | . . . . . . . . . . . . . . . . . . . . . . . 2 . . . . . Parts Stolen . | . . . . . . . . . . . . . . . . . . . . . . . . . . . . . Parts Stripped . | . . . . . . . . . . . . . . . . . . . . . . . . . . . . . Power Chain Reactions 9 | . 4 1 . . . . . . . . 1 . . . . . . . . 1 1 1 . . . . . . Alert | -11 -10 -10 -9 -9 -9 -8 -8 -8 -8 -7 -7 -7 -7 -7 -7 -6 -6 -6 -6 -6 -6 -6 -5 -5 -5 -5 -4 -4 ------- Run | Yrd Mat Min Mat Min Exi Min Mat Gar Mat Fac Gar Fac Low Low Dat Pro Fac Ext Cet Arc Hub Gar Fac Upp Upp Zhi Pro Fac Peak Influence 1792 | 20 311 245 537 167 . 166 348 1107 591 281 1120 700 . . . . 403 288 177 209 817 1792 1091 . . . . 816 Initial 940 | . 13 110 57 108 . . 64 141 539 173 146 588 . . . . 227 102 16 . 72 571 940 . . . . . Average 399 | 8 142 152 245 84 . 45 115 661 433 92 653 495 . . . . 237 125 76 173 373 1249 858 . . . . 249 Maximum Alert Level 5 | . 1 1 2 . . . 1 4 2 1 4 3 . . . . 2 1 . 1 3 5 3 . . . . 3 Low Security (%) 38 | 100 69 58 35 100 . 100 86 8 . 87 4 . . . . . 20 90 100 37 17 . . . . . . 48 Level 1 22 | . 30 41 55 . . . 13 15 32 12 21 19 . . . . 75 9 . 62 44 . . . . . . 34 Level 2 20 | . . . 8 . . . . 27 67 . 30 79 . . . . 4 . . . 27 17 18 . . . . 9 Level 3 13 | . . . . . . . . 44 . . 32 1 . . . . . . . . 10 1 81 . . . . 8 Level 4 4 | . . . . . . . . 4 . . 10 . . . . . . . . . . 73 . . . . . . Level 5 . | . . . . . . . . . . . . . . . . . . . . . . 8 . . . . . . High Security . | . . . . . . . . . . . . . . . . . . . . . . . . . . . . . Max Security . | . . . . . . . . . . . . . . . . . . . . . . . . . . . . . Squads Dispatched 73 | . 3 1 4 . . . 6 . 1 9 . 12 . 1 . . 10 1 . . 6 . 11 . 1 . . 7 Investigation 21 | . 2 1 3 . . . 4 . . 4 . 3 . . . . 2 . . . . . 2 . . . . . Extermination 18 | . . . . . . . . . . 2 . 5 . . . . 3 . . . 1 . 4 . . . . 3 Reinforcement 17 | . 1 . 1 . . . 1 . 1 3 . 1 . . . . 2 1 . . 1 . 2 . . . . 3 Assault 6 | . . . . . . . . . . . . . . 1 . . . . . . 1 . 3 . 1 . . . Garrison 11 | . . . . . . . 1 . . . . 3 . . . . 3 . . . 3 . . . . . . 1 Intercept . | . . . . . . . . . . . . . . . . . . . . . . . . . . . . . Searches Triggered . | . . . . . . . . . . . . . . . . . . . . . . . . . . . . . Data Miner Redirects 1 | . . . . . . . . . . . . . . . . . . . . . . . 1 . . . . . Construction Impeded 4 | . . . 1 . . . . . 1 1 . . . . . . . . . . . . . . . . . 1 Haulers Reinforced 5 | . . . . . . . . . . 1 . . . . . . 2 . . . . . 1 . . . . 1 Active Scanning Responses . | . . . . . . . . . . . . . . . . . . . . . . . . . . . . . Cargo Convoy Interrupts . | . . . . . . . . . . . . . . . . . . . . . . . . . . . . . Stealth | -11 -10 -10 -9 -9 -9 -8 -8 -8 -8 -7 -7 -7 -7 -7 -7 -6 -6 -6 -6 -6 -6 -6 -5 -5 -5 -5 -4 -4 --------- Run | Yrd Mat Min Mat Min Exi Min Mat Gar Mat Fac Gar Fac Low Low Dat Pro Fac Ext Cet Arc Hub Gar Fac Upp Upp Zhi Pro Fac Distress Signals 23 | . 2 . 4 . . . 2 . 5 2 . . . . . 1 . . 2 . . . 2 . . . . 3 Communications Jammed 27 | . . . . . . . . . . . . . . . . . . . . . . . 27 . . . . . Distress Signals 27 | . . . . . . . . . . . . . . . . . . . . . . . 27 . . . . . Times Spotted 532 | . 23 11 32 2 . 4 44 31 29 20 35 26 12 31 . 11 17 25 10 20 17 29 51 5 18 . 2 27 Peak Tracking Total 13 | . 5 3 4 2 . 3 7 5 6 4 7 3 4 13 . 3 3 4 5 1 4 12 7 3 13 . 2 8 Tactical Retreats 47 | . 3 2 3 . . . 2 2 7 2 8 3 2 5 . . . 1 . . . . 4 . 2 . . 1 Traps | -11 -10 -10 -9 -9 -9 -8 -8 -8 -8 -7 -7 -7 -7 -7 -7 -6 -6 -6 -6 -6 -6 -6 -5 -5 -5 -5 -4 -4 ------- Run | Yrd Mat Min Mat Min Exi Min Mat Gar Mat Fac Gar Fac Low Low Dat Pro Fac Ext Cet Arc Hub Gar Fac Upp Upp Zhi Pro Fac Traps Triggered 46 | . 1 . 1 . . . 1 7 1 2 11 8 . . . . 2 7 . . . 4 1 . . . . . Indirectly 2 | . . . . . . . . . . . 2 . . . . . . . . . . . . . . . . . Trap Hack Attempts . | . . . . . . . . . . . . . . . . . . . . . . . . . . . . . Triggered . | . . . . . . . . . . . . . . . . . . . . . . . . . . . . . Disarmed . | . . . . . . . . . . . . . . . . . . . . . . . . . . . . . Reprogrammed . | . . . . . . . . . . . . . . . . . . . . . . . . . . . . . Reused 7 | . . . . . . . . . . . . . 2 3 . . 1 . . . . . . . . . . 1 Traps Extracted . | . . . . . . . . . . . . . . . . . . . . . . . . . . . . . Installed 8 | . . . . . . . . . . . . . 2 3 . . 2 . . . . . . . . . . 1 Triggered 15 | . . . . . . . . . . . 2 . 5 3 . 1 1 . . . . . . 2 . . . 1 Most Traps Carried 7 | . . . . . . . . . . . . . 4 4 3 3 3 1 1 . . . . 7 7 7 7 7 Objects Rigged 3 | . . . 3 . . . . . . . . . . . . . . . . . . . . . . . . . Exploded 2 | . . . 2 . . . . . . . . . . . . . . . . . . . . . . . . . Machines | -11 -10 -10 -9 -9 -9 -8 -8 -8 -8 -7 -7 -7 -7 -7 -7 -6 -6 -6 -6 -6 -6 -6 -5 -5 -5 -5 -4 -4 ---------- Run | Yrd Mat Min Mat Min Exi Min Mat Gar Mat Fac Gar Fac Low Low Dat Pro Fac Ext Cet Arc Hub Gar Fac Upp Upp Zhi Pro Fac Machines Disabled 77 | . 1 . 2 . . . 1 11 1 3 4 2 . . . . . 2 . 4 13 6 10 . 2 . . 15 Max in Single Turn 12 | . 1 . 1 . . . 1 3 1 2 1 2 . . . . . 1 . 1 12 1 4 . 2 . . 4 Garrison Access 4 | . . . . . . . . . . 2 . . . . . . . . . . . . 1 . . . . 1 Garrison Relay 15 | . . . . . . . . 7 . . 3 . . . . . . . . . . 5 . . . . . . Network Hub 1 | . . . . . . . . . . . . . . . . . . . . . 1 . . . . . . . Machines Repaired . | . . . . . . . . . . . . . . . . . . . . . . . . . . . . . Machines Dismantled . | . . . . . . . . . . . . . . . . . . . . . . . . . . . . . Machines Sabotaged . | . . . . . . . . . . . . . . . . . . . . . . . . . . . . . Overloaded Fab Kills . | . . . . . . . . . . . . . . . . . . . . . . . . . . . . . Hacking | -11 -10 -10 -9 -9 -9 -8 -8 -8 -8 -7 -7 -7 -7 -7 -7 -6 -6 -6 -6 -6 -6 -6 -5 -5 -5 -5 -4 -4 --------- Run | Yrd Mat Min Mat Min Exi Min Mat Gar Mat Fac Gar Fac Low Low Dat Pro Fac Ext Cet Arc Hub Gar Fac Upp Upp Zhi Pro Fac Machines Accessed 122 | . 9 2 10 . 2 . 13 1 9 18 3 16 1 . 4 . 5 3 1 . 3 2 6 . . 5 . 9 Terminals 77 | . 6 . 8 . . . 10 1 7 11 3 13 . . . . 2 3 1 . 2 2 3 . . . . 5 Fabricators 8 | . . . . . . . . . . 3 . 1 . . . . 2 . . . . . 1 . . . . 1 Repair Stations 9 | . 1 . 1 . . . 2 . 2 1 . . . . . . . . . . . . . . . . . 2 Recycling Units 3 | . 2 . 1 . . . . . . . . . . . . . . . . . . . . . . . . . Scanalyzers 1 | . . . . . . . . . . . . . . . . . . . . . . . 1 . . . . . Garrison Access 10 | . . . . . . . 1 . . 3 . 2 . . . . 1 . . . 1 . 1 . . . . 1 Total Hacks 395 | . 21 2 32 . 24 . 47 3 26 47 6 35 1 . 32 . 12 8 1 . 6 8 33 . . 18 . 33 Successful 248 | . 10 2 24 . 24 . 31 2 17 28 3 12 1 . 32 . 3 4 1 . 3 4 19 . . 18 . 10 Failed 146 | . 11 . 8 . . . 15 1 9 19 3 23 . . . . 9 4 . . 3 4 14 . . . . 23 Catastrophic 24 | . . . . . . . 1 1 3 3 2 4 . . . . 2 . . . 1 2 1 . . . . 4 Database Lockouts 1 | . . . . . . . 1 . . . . . . . . . . . . . . . . . . . . . Manual 182 | . 8 . 16 . 1 . 27 2 15 24 2 20 . . . . 12 4 1 . 4 5 18 . . . . 23 Terminals 234 | . 16 . 23 . . . 39 3 20 30 6 30 . . . . 6 8 1 . 5 8 17 . . . . 22 Fabricators 25 | . . . . . . . . . . 9 . 2 . . . . 4 . . . . . 7 . . . . 3 Repair Stations 34 | . 3 . 8 . . . 7 . 6 3 . . . . . . . . . . . . . . . . . 7 Recycling Units 3 | . 2 . 1 . . . . . . . . . . . . . . . . . . . . . . . . . Scanalyzers 6 | . . . . . . . . . . . . . . . . . . . . . . . 6 . . . . . Garrison Access 16 | . . . . . . . 1 . . 5 . 3 . . . . 2 . . . 1 . 3 . . . . 1 Terminal Hacks 147 | . 4 2 9 . 24 . 19 1 7 9 2 6 1 . 32 . . 2 1 . . 2 5 . . 18 . 3 Record 40 | . . . . . 23 . . . . . . . . . 11 . . . . . . . . . . 6 . . Part Schematic 16 | . . . . . . . . . . 1 . . . . 11 . . . . . . . . . . 4 . . Robot Schematic 7 | . . . . . . . . . . . . . . . 7 . . . . . . . . . . . . . Robot Analysis 10 | . . . . . . . 6 . . . . . . . . . . . . . . . . . . 4 . . Prototype ID Bank 14 | . 1 . 2 . . . 3 . 1 . . . . . 3 . . . . . . . . . . 4 . . Open Door 5 | . . 2 . . . . . . . . 1 . 1 . . . . . 1 . . . . . . . . . Branch Access Points 4 | . . . . . . . 1 . . 1 . 1 . . . . . . . . . . . . . . . 1 Emergency Access Points 5 | . . . . . . . 1 1 . 1 1 . . . . . . . . . . 1 . . . . . . Terminal Index 6 | . 1 . . . . . 1 . . 1 . 1 . . . . . 1 . . . . 1 . . . . . Garrison Index 1 | . . . . . . . . . . 1 . . . . . . . . . . . . . . . . . . Alert Level 11 | . . . 3 . . . 2 . 2 . . 1 . . . . . 1 . . . . 1 . . . . 1 Unreport Threat 15 | . 1 . 2 . . . 3 . 2 3 . 2 . . . . . . . . . . 2 . . . . . Locate Traps 2 | . . . 1 . . . . . 1 . . . . . . . . . . . . . . . . . . . Recall Reinforcements 1 | . . . . . . . . . . 1 . . . . . . . . . . . . . . . . . . Recall Assault 1 | . . . . . . . . . . . . . . . . . . . . . . . 1 . . . . . Hauler Manifests 6 | . 1 . 1 . . . 1 . 1 . . 1 . . . . . . . . . . . . . . . 1 Registered Prototypes 1 | . . . . . . . 1 . . . . . . . . . . . . . . . . . . . . . Garrison Registry 1 | . . . . . . . . . . . . . . . . . . . . . . 1 . . . . . . Derelict Proto ID Bank 1 | . . . . . 1 . . . . . . . . . . . . . . . . . . . . . . . Fabricator Hacks 10 | . . . . . . . . . . 5 . 1 . . . . . . . . . . 3 . . . . 1 Network Status 4 | . . . . . . . . . . 1 . 1 . . . . . . . . . . 1 . . . . 1 Load Schematic 3 | . . . . . . . . . . 2 . . . . . . . . . . . . 1 . . . . . Build 3 | . . . . . . . . . . 2 . . . . . . . . . . . . 1 . . . . . Repair Station Hacks 23 | . 2 . 8 . . . 6 . 4 1 . . . . . . . . . . . . . . . . . 2 Scan Component 13 | . 1 . 4 . . . 3 . 3 1 . . . . . . . . . . . . . . . . . 1 Repair 10 | . 1 . 4 . . . 3 . 1 . . . . . . . . . . . . . . . . . . 1 Recycling Unit Hacks . | . . . . . . . . . . . . . . . . . . . . . . . . . . . . . Scanalyzer 5 | . . . . . . . . . . . . . . . . . . . . . . . 5 . . . . . Insert Component 2 | . . . . . . . . . . . . . . . . . . . . . . . 2 . . . . . Analyze 3 | . . . . . . . . . . . . . . . . . . . . . . . 3 . . . . . Garrison Access Hacks 7 | . . . . . . . 1 . . 3 . . . . . . . . . . 1 . 1 . . . . 1 Unlock Access 3 | . . . . . . . 1 . . 1 . . . . . . . . . . 1 . . . . . . . Seal Access 4 | . . . . . . . . . . 2 . . . . . . . . . . . . 1 . . . . 1 Unauthorized Hacks 56 | . 4 . 7 . . . 5 1 6 10 1 5 . . . . 3 2 . . 2 2 5 . . . . 3 Terminals 43 | . 2 . 6 . . . 5 1 6 6 1 4 . . . . 1 2 . . 2 2 3 . . . . 2 Track 3 | . . . 1 . . . . . 2 . . . . . . . . . . . . . . . . . . . Assimilate 3 | . . . 1 . . . 1 . . 1 . . . . . . . . . . . . . . . . . . Botnet 34 | . 2 . 3 . . . 3 1 4 5 1 4 . . . . 1 2 . . 2 2 3 . . . . 1 Detonate 1 | . . . 1 . . . . . . . . . . . . . . . . . . . . . . . . . Operators 2 | . . . . . . . 1 . . . . . . . . . . . . . . . . . . . . 1 Fabricators 10 | . . . . . . . . . . 4 . 1 . . . . 2 . . . . . 2 . . . . 1 Report 5 | . . . . . . . . . . 1 . 1 . . . . 1 . . . . . 1 . . . . 1 Fabnet 4 | . . . . . . . . . . 2 . . . . . . 1 . . . . . 1 . . . . . Recompile 1 | . . . . . . . . . . 1 . . . . . . . . . . . . . . . . . . Repair Stations . | . . . . . . . . . . . . . . . . . . . . . . . . . . . . . Recycling Units 3 | . 2 . 1 . . . . . . . . . . . . . . . . . . . . . . . . . Tunnel 3 | . 2 . 1 . . . . . . . . . . . . . . . . . . . . . . . . . Scanalyzers . | . . . . . . . . . . . . . . . . . . . . . . . . . . . . . Garrison Access . | . . . . . . . . . . . . . . . . . . . . . . . . . . . . . Data Cores Recovered 5 | . 1 . . . . . . . 1 . . . . . . . . . . . 1 . 1 . . . . 1 Used 3 | . . . . . . . . . 1 . . . . . . . . . . . 1 . 1 . . . . . Hacking Detections 93 | . 6 . 9 . . . 12 1 7 16 2 16 . . . . 5 3 . . 3 2 5 . . . . 6 Full Trace Events 16 | . 2 . 2 . . . 3 . . 3 1 1 . . . . 2 . . . . . 2 . . . . . Feedback Events 3 | . . . . . . . . . . . . 1 . . . . 2 . . . . . . . . . . . Corruption 3 | . . . . . . . . . . . . 1 . . . . 2 . . . . . . . . . . . Feedback Blocked . | . . . . . . . . . . . . . . . . . . . . . . . . . . . . . Robot Schematics Acquired 7 | . . . . . . . . . . . . . . . 7 . . . . . . . . . . . . . Robots Built . | . . . . . . . . . . . . . . . . . . . . . . . . . . . . . Authchips . | . . . . . . . . . . . . . . . . . . . . . . . . . . . . . Time . | . . . . . . . . . . . . . . . . . . . . . . . . . . . . . Total Robot Build Rating . | . . . . . . . . . . . . . . . . . . . . . . . . . . . . . Part Schematics Acquired 18 | . . . . . . . . . . 1 . . . . 11 . . . . . . . 2 . . 4 . . Parts Built 5 | . . . . . . . . . . 4 . . . . . . . . . . . . 1 . . . . . Authchips . | . . . . . . . . . . . . . . . . . . . . . . . . . . . . . Time 288 | . . . . . . . . . . 212 . . . . . . . . . . . . 76 . . . . . Total Part Build Rating 29 | . . . . . . . . . . 24 . . . . . . . . . . . . 5 . . . . . Parts Repaired 10 | . 1 . 4 . . . 3 . 1 . . . . . . . . . . . . . . . . . . 1 Time 467 | . 53 . 147 . . . 115 . 44 . . . . . . . . . . . . . . . . . . 108 Parts Recycled . | . . . . . . . . . . . . . . . . . . . . . . . . . . . . . Recycled Matter . | . . . . . . . . . . . . . . . . . . . . . . . . . . . . . Retrieved Matter . | . . . . . . . . . . . . . . . . . . . . . . . . . . . . . Retrieved Components . | . . . . . . . . . . . . . . . . . . . . . . . . . . . . . Parts Scanalyzed 2 | . . . . . . . . . . . . . . . . . . . . . . . 2 . . . . . Part Schematics Acquired 2 | . . . . . . . . . . . . . . . . . . . . . . . 2 . . . . . Parts Damaged . | . . . . . . . . . . . . . . . . . . . . . . . . . . . . . Bothacking | -11 -10 -10 -9 -9 -9 -8 -8 -8 -8 -7 -7 -7 -7 -7 -7 -6 -6 -6 -6 -6 -6 -6 -5 -5 -5 -5 -4 -4 ------------ Run | Yrd Mat Min Mat Min Exi Min Mat Gar Mat Fac Gar Fac Low Low Dat Pro Fac Ext Cet Arc Hub Gar Fac Upp Upp Zhi Pro Fac Used RIF Installer . | . . . . . . . . . . . . . . . . . . . . . . . . . . . . . Robots Hacked 10 | . . . . . . . . . . . . . . . . . 1 1 . . 2 2 3 . 1 . . . Non-combat . | . . . . . . . . . . . . . . . . . . . . . . . . . . . . . Combat 10 | . . . . . . . . . . . . . . . . . 1 1 . . 2 2 3 . 1 . . . Robot Hacks Applied . | . . . . . . . . . . . . . . . . . . . . . . . . . . . . . Relay Couplers Released 62 | . . . . . . . . 28 . . 13 . . . . . . . . . . 21 . . . . . . Machine Destruction 62 | . . . . . . . . 28 . . 13 . . . . . . . . . . 21 . . . . . . Fabnet Peak Effective % 6 | . . . . . . . . . . . . . . . . 6 6 6 6 6 6 6 5 5 5 5 1 1 Autooverrided 10 | . . . . . . . . . . . . . . . . . 1 1 . . 2 2 3 . 1 . . . Robots Rewired 19 | . 1 . . . . . . . . . 2 . . 2 . . 1 7 . . . 4 . . 2 . . . Allies Hacked . | . . . . . . . . . . . . . . . . . . . . . . . . . . . . . Hacks Repelled . | . . . . . . . . . . . . . . . . . . . . . . . . . . . . . Allies | -11 -10 -10 -9 -9 -9 -8 -8 -8 -8 -7 -7 -7 -7 -7 -7 -6 -6 -6 -6 -6 -6 -6 -5 -5 -5 -5 -4 -4 -------- Run | Yrd Mat Min Mat Min Exi Min Mat Gar Mat Fac Gar Fac Low Low Dat Pro Fac Ext Cet Arc Hub Gar Fac Upp Upp Zhi Pro Fac Total Allies 59 | . 1 . 1 5 . . 1 . . 1 2 . . 3 . 1 2 20 5 . 3 6 5 . 3 . . . Largest Group 9 | . 1 . 1 6 6 4 3 . . 1 2 . . 2 1 2 2 9 8 3 2 3 2 . 2 2 2 . Highest-Rated Group 703 | . 8 . 10 98 98 49 41 . . 26 56 . . 36 20 116 116 335 703 294 135 227 198 . 59 59 59 . Highest-Rated Ally 159 | . 8 . 10 31 31 16 16 . . 26 31 . . 20 20 96 96 159 159 159 96 99 99 . 30 30 30 . Warlord Squad Rendezvous 1 | . . . . . . . . . . . . . . . . . 1 . . . . . . . . . . . Infantry 1 | . . . . . . . . . . . . . . . . . 1 . . . . . . . . . . . Total Orders 9 | . . 1 . . 2 . . . 1 . . . . . 2 . . 1 . . . . . . . 2 . . STAY 3 | . . . . . 1 . . . . . . . . . 1 . . . . . . . . . . 1 . . FOLLOW 3 | . . . . . 1 . . . . . . . . . 1 . . . . . . . . . . 1 . . RETURN 3 | . . 1 . . . . . . 1 . . . . . . . . 1 . . . . . . . . . . Ally Attacks 427 | . 2 . . 3 . 7 9 . 1 . 4 . . 29 . 17 25 139 52 11 35 45 34 2 1 . 11 . Total Damage 9619 | . 11 . . 63 . 73 63 . 4 . 41 . . 145 . 589 807 2641 1501 229 1309 972 974 2 . . 195 . Kills 64 | . . . . 2 . . 2 . . . . . . 2 . 7 3 15 6 1 14 7 3 . . . 2 . Allies Corrupted 2 | . . . . . . . . . . . . . . . . . . . . . 1 . 1 . . . . . Allies Melted 1 | . . . . . . . . . . . . . . . . . . . . . . . 1 . . . . . Field Lobotomies 2 | . . . . . . . . . . . . . . . . . . . . . 1 . 1 . . . . . Intel | -11 -10 -10 -9 -9 -9 -8 -8 -8 -8 -7 -7 -7 -7 -7 -7 -6 -6 -6 -6 -6 -6 -6 -5 -5 -5 -5 -4 -4 ------- Run | Yrd Mat Min Mat Min Exi Min Mat Gar Mat Fac Gar Fac Low Low Dat Pro Fac Ext Cet Arc Hub Gar Fac Upp Upp Zhi Pro Fac Robot Analysis Total 10 | . . . . . . . 6 . . . . . . . . . . . . . . . . . . 4 . . Derelict Logs Recovered 10 | . . . . 1 . . . . . . . . 2 1 . 1 . . . . . . . 2 2 . 1 . Drone Launches 41 | . . 1 . . . . . . 1 . . . . 20 . . . 10 3 . . 2 2 2 . . . . Drone Recoveries 35 | . . 1 . . . . . . 1 . . . . 17 . . . 10 2 . . 2 2 . . . . . Exploration | -11 -10 -10 -9 -9 -9 -8 -8 -8 -8 -7 -7 -7 -7 -7 -7 -6 -6 -6 -6 -6 -6 -6 -5 -5 -5 -5 -4 -4 ------------- Run | Yrd Mat Min Mat Min Exi Min Mat Gar Mat Fac Gar Fac Low Low Dat Pro Fac Ext Cet Arc Hub Gar Fac Upp Upp Zhi Pro Fac Turns Passed 31345 | 94 756 618 1312 622 526 291 2206 1250 1200 2384 1369 2892 919 993 111 730 1675 1285 508 159 565 1375 2664 934 1082 236 541 2048 Spaces Moved 20362 | 34 535 484 805 536 467 199 1251 736 651 1672 782 2182 754 695 90 583 1139 718 255 54 367 896 1662 530 606 147 217 1315 Core 2 | 2 . . . . . . . . . . . . . . . . . . . . . . . . . . . . Treads 1758 | . . . . . . . . . . . . . . . . . . . . . . . 531 530 606 91 . . Legs 5808 | 32 93 . . . . . . . . 658 178 . . . . . . 556 255 54 367 896 1131 . . 56 217 1315 Wheels 12794 | . 442 484 805 536 467 199 1251 736 651 1014 604 2182 754 695 90 583 1139 162 . . . . . . . . . . Hover . | . . . . . . . . . . . . . . . . . . . . . . . . . . . . . Flight . | . . . . . . . . . . . . . . . . . . . . . . . . . . . . . Fastest Speed 50 | 50 90 105 105 105 105 120 105 120 115 115 120 101 110 111 115 108 108 110 120 120 120 120 112 163 160 120 120 120 Average Speed 120 | 115 104 105 105 105 108 120 118 125 121 123 122 105 110 114 115 110 112 130 172 120 120 120 133 163 162 147 120 120 Slowest Speed 195 | 120 120 105 105 105 120 120 120 135 165 195 135 120 111 115 115 115 130 190 190 120 120 190 190 163 163 190 120 120 Overloaded Moves . | . . . . . . . . . . . . . . . . . . . . . . . . . . . . . Propulsion Burnouts . | . . . . . . . . . . . . . . . . . . . . . . . . . . . . . Robots Hopped . | . . . . . . . . . . . . . . . . . . . . . . . . . . . . . Cave-ins Triggered 1 | . . . . . . . . . . . . . . . . . . . . . . . . . . . . 1 Exploration Rate (%) 65 | 4 87 80 73 99 76 51 80 70 67 45 76 55 75 82 68 90 23 86 80 74 49 93 37 64 74 60 42 35 Regions Visited 28 Branch Regions 16 Pre-discovered Areas 9 | . 2 . 1 . 1 . . . . . . . 1 . 1 . . . . . . . . . . 3 . . Known Exits Taken 5 | . . . . . . . 1 . . 1 . 1 . . . . 1 . . . 1 . . . . . . . Unknown Exits Taken 20 | 1 1 1 1 1 1 1 . . 1 . . . 1 1 1 1 . 1 1 1 . . 1 1 1 1 1 . Scrap Searched 13 | . . 1 . 2 . . . . . . . . 1 1 . 4 . . . . . . . 2 2 . . . Spaces Dug 126 | . . 9 12 . . . 5 . . 11 . 13 . . . 19 9 . . . . . 16 . . . . 32 Terrain Destroyed 968 | . 8 32 106 . . 69 5 17 2 51 14 15 13 23 . 19 9 . . 3 197 39 85 28 64 . 6 163 Melee 36 | . . . . . . . 5 . . 11 . 11 . . . . 9 . . . . . . . . . . . Projectile 234 | . . . . . . . . 3 2 12 7 4 . . . . . . . 3 10 11 50 28 18 . 6 80 AOE 698 | . 8 32 106 . . 69 . 14 . 28 7 . 13 23 . 19 . . . . 187 28 35 . 46 . . 83 Terrain Rammed . | . . . . . . . . . . . . . . . . . . . . . . . . . . . . . Walls Destroyed . | . . . . . . . . . . . . . . . . . . . . . . . . . . . . . Machines Disabled . | . . . . . . . . . . . . . . . . . . . . . . . . . . . . . Actions | -11 -10 -10 -9 -9 -9 -8 -8 -8 -8 -7 -7 -7 -7 -7 -7 -6 -6 -6 -6 -6 -6 -6 -5 -5 -5 -5 -4 -4 --------- Run | Yrd Mat Min Mat Min Exi Min Mat Gar Mat Fac Gar Fac Low Low Dat Pro Fac Ext Cet Arc Hub Gar Fac Upp Upp Zhi Pro Fac Total 25150 | 61 665 558 1147 594 487 223 1793 942 1007 1883 1024 2632 796 862 97 637 1416 993 309 92 436 1069 1924 568 655 165 482 1633 Wait 2556 | 3 55 36 228 50 9 3 384 38 265 70 73 252 15 136 . 37 122 135 13 10 39 62 60 9 8 . 253 191 Move 20334 | 33 534 483 804 535 466 198 1251 735 650 1671 781 2181 753 694 89 582 1138 717 254 53 366 895 1661 529 605 146 216 1314 Hop . | . . . . . . . . . . . . . . . . . . . . . . . . . . . . . Pick Up 181 | 3 21 4 11 1 4 1 16 5 9 19 2 23 6 3 . 1 14 3 4 1 1 2 14 4 1 1 . 7 Fast Attach 228 | 7 1 1 11 1 . . 14 4 7 15 4 24 1 3 4 1 25 11 12 . 2 7 35 2 7 10 3 16 Attach 89 | . 1 2 5 2 3 1 6 8 6 5 8 9 1 . . . 3 2 . . . 2 15 5 1 . . 4 Detach 29 | . . . . 2 1 . 4 3 1 2 1 1 . . . . 1 . 2 . . 1 7 1 . . . 2 Swap 187 | . 3 12 11 . 1 3 8 12 4 21 11 16 4 4 . 3 22 12 1 1 4 8 14 2 4 . . 6 Drop 286 | . 9 2 14 2 3 . 18 3 11 23 3 44 1 5 4 2 33 13 16 1 3 7 33 3 6 8 3 16 Fire 944 | 15 34 18 63 1 . 17 87 73 54 43 74 49 13 10 . 11 33 29 7 26 21 63 85 13 23 . 7 75 Melee 59 | . . . . . . . 5 5 . 14 9 17 . . . . 9 . . . . . . . . . . . Ram . | . . . . . . . . . . . . . . . . . . . . . . . . . . . . . Kick . | . . . . . . . . . . . . . . . . . . . . . . . . . . . . . Crush . | . . . . . . . . . . . . . . . . . . . . . . . . . . . . . Escape Stasis 191 | . . . . . . . . 56 . . 51 16 . . . . 8 44 . . . 15 . . . . . 1 Rewire 58 | . 7 . . . . . . . . . 7 . . 4 . . 6 27 . . . 7 . . . . . . Trap 8 | . . . . . . . . . . . . . 2 3 . . 2 . . . . . . . . . . 1 Miscellaneous . | . . . . . . . . . . . . . . . . . . . . . . . . . . . . . Route ------- -11/Scrapyard -10/Materials (discovered 4 exits: *Mat x2 / *Min x2) -10/Mines (discovered 2 exits: *Mat x2) -9/Materials (discovered 3 exits: *Mat / [*Min x2]) -9/Mines (discovered 3 exits: *Mat x2 / *Exi) -9/Exiles -8/Mines -8/Materials (discovered 2 exits: *Fac / Gar) -8/Garrison (discovered 2 exits: *Mat x2) -8/Materials -7/Factory (discovered 5 exits: *Fac / Sto / Low x2 / Gar) -7/Garrison (discovered 2 exits: *Fac x2) -7/Factory (discovered 6 exits: *Fac x2 / *Sto x2 / *Low x2) -7/Lower Caves -7/Lower Caves (discovered 2 exits: *Fac / *Dat) -7/Data Miner -6/Proximity Caves -6/Factory (discovered 4 exits: *Fac / *Low x2 / *Ext) -6/Extension (discovered 2 exits: *Fac / *Cet) -6/Cetus (discovered 2 exits: *Fac / [*Arc]) -6/Archives (discovered 2 exits: *Hub x2) -6/Hub_04(d) (discovered 3 exits: *Fac x2 / Gar) -6/Garrison (discovered 3 exits: *Fac x3) -5/Factory -5/Upper Caves -5/Upper Caves (discovered 2 exits: *Fac / *Zhi) -5/Zhirov -4/Proximity Caves -4/Factory (discovered 4 exits: [*Res x2] / Upp x2) History --------- Turn | Location | Event 9 | -11/Scrapyard | Discovered new exit (range 15) 95 | -11/Scrapyard | Entered Materials 300 | -10/Materials | Build established: Mutant 317 | -10/Materials | Discovered new exit (range 8) 358 | -10/Materials | Discovered new exit (range 13) 522 | -10/Materials | Repaired Corrupted Hacking Suite? 530 | -10/Materials | Discovered new exit (range 12) 540 | -10/Materials | Discovered new exit (range 13) 851 | -10/Materials | Entered Mines 1030 | -10/Mines | Met a Derelict shopkeep closing up shop 1061 | -10/Mines | Discovered new exit (range 11) 1243 | -10/Mines | Found the Drone Emporium 1246 | -10/Mines | Found Prototype Device 1248 | -10/Mines | Identified Splice Drone Bay 1264 | -10/Mines | Discovered new exit (range 8) 1469 | -10/Mines | Entered Materials 1469 | -9/Materials | Evolved 2 slots: Utility x2 1736 | -9/Materials | Discovered new exit (range 14) 1961 | -9/Materials | Repaired Arm. Wheel 2200 | -9/Materials | Destroyed 9 combat bots 2212 | -9/Materials | Discovered new exit (range 6) 2534 | -9/Materials | Discovered new exit (range 16) 2650 | -9/Materials | Repaired Arm. Wheel 2683 | -9/Materials | Repaired Spread Laser 2736 | -9/Materials | Repaired Cld. Ion Engine 2781 | -9/Materials | Entered Mines 2781 | -9/Mines | Accompanied by 1 ally 2868 | -9/Mines | Received a Rocket Launcher from a helpful Derelict 2913 | -9/Mines | Discovered new exit (range 12) 2951 | -9/Mines | Deemed a non-threat by the Exiles lab entrance 2951 | -9/Mines | Discovered new exit (range 5) 2976 | -9/Mines | Discovered new exit (range 15) 3114 | -9/Mines | Learned 2 Materials zone layouts 3114 | -9/Mines | Assisted by bots powering up and referring to "LRC-V3" 3403 | -9/Mines | Entered Exiles 3403 | -9/Exiles | Accompanied by 6 allies 3425 | -9/Exiles | Build established: Commander-Mutant 3432 | -9/Exiles | Met 8R-AWN 3433 | -9/Exiles | Led the pair of lost Derelicts to a safe place 3449 | -9/Exiles | Met EX-HEX 3497 | -9/Exiles | Met EX-DEC 3507 | -9/Exiles | Learned location of Zion (-6) 3590 | -9/Exiles | Visited The Gauntlet 3641 | -9/Exiles | Met EX-BIN 3660 | -9/Exiles | Aligned with FarCom system 3661 | -9/Exiles | Given EX-Vault access code 3686 | -9/Exiles | Opened EX-Vault 3694 | -9/Exiles | Found Field Lobotomy Kit 3717 | -9/Exiles | Warned to stay clear of 0b10 Research branches 3910 | -9/Exiles | Discovered new exit (range 15) 3929 | -9/Exiles | Left Exiles lab with Field Lobotomy Kit 3929 | -9/Exiles | Entered Mines 3929 | -8/Mines | Accompanied by 4 allies 4180 | -8/Mines | Discovered new exit (range 13) 4184 | -8/Mines | Core integrity fell below 50% 4220 | -8/Mines | Entered Materials 4220 | -8/Materials | Accompanied by 3 allies 4220 | -8/Materials | Evolved 2 slots: Propulsion x1, Weapon x1 4391 | -8/Materials | Lost 3 allies 4424 | -8/Materials | Destroyed 7 combat bots 4551 | -8/Materials | Build established: Skirmisher 5383 | -8/Materials | Central database locked down 5545 | -8/Materials | Discovered new exit (range 12) 5662 | -8/Materials | Repaired Arm. Wheel 5696 | -8/Materials | Repaired Arm. Wheel 6175 | -8/Materials | Repaired Imp. Assault Rifle 6340 | -8/Materials | Garrison activated, responded to threat 6426 | -8/Materials | Identified exit to Garrison 6426 | -8/Materials | Entered Garrison 6498 | -8/Garrison | Triggered checkpoint 6531 | -8/Garrison | Garrison Relay disabled 6634 | -8/Garrison | Triggered checkpoint 6643 | -8/Garrison | Core integrity fell below 50% 6808 | -8/Garrison | Build established: Tank 6830 | -8/Garrison | Lost 3 parts (2n1w) 6858 | -8/Garrison | Discovered new exit (range 13) 6975 | -8/Garrison | Garrison Relay disabled 7076 | -8/Garrison | Garrison Relay disabled 7076 | -8/Garrison | Garrison Relay disabled 7156 | -8/Garrison | Garrison Relay disabled 7167 | -8/Garrison | Garrison Relay disabled 7219 | -8/Garrison | Discovered new exit (range 10) 7298 | -8/Garrison | Triggered checkpoint 7317 | -8/Garrison | Garrison Relay disabled 7607 | -8/Garrison | Build established: Skirmisher 7676 | -8/Garrison | Entered Materials 8250 | -8/Materials | Core integrity fell below 20% 8284 | -8/Materials | Destroyed 7 combat bots 8413 | -8/Materials | Lost 3 parts (1p1n1u) 8483 | -8/Materials | Repaired Broken Arm. Wheel 8548 | -8/Materials | Build established: Tank 8872 | -8/Materials | Discovered new exit (range 4) 8876 | -8/Materials | Entered Factory 8876 | -7/Factory | Evolved 2 slots: Propulsion x1, Weapon x1 8975 | -7/Factory | Build established: Skirmisher 9275 | -7/Factory | Build established: Tank 9687 | -7/Factory | Discovered new exit (range 15) 9742 | -7/Factory | Identified exit to Storage 9742 | -7/Factory | Identified exit to Lower Caves 9919 | -7/Factory | Build established: Hacker-Skirmisher 10010 | -7/Factory | Fabricated KE Penetrator (x2) 10355 | -7/Factory | Fabricated KE Penetrator (x2) 11251 | -7/Factory | Identified exit to Garrison 11260 | -7/Factory | Entered Garrison 11334 | -7/Garrison | Triggered checkpoint 11395 | -7/Garrison | Garrison Relay disabled 11556 | -7/Garrison | Triggered checkpoint 11574 | -7/Garrison | Triggered checkpoint 11665 | -7/Garrison | Lost 7 parts (1p2n2u2w) 11873 | -7/Garrison | Build established: Skirmisher 11883 | -7/Garrison | Discovered new exit (range 8) 11928 | -7/Garrison | Triggered checkpoint 12030 | -7/Garrison | Garrison Relay disabled 12222 | -7/Garrison | Discovered new exit (range 15) 12249 | -7/Garrison | Core integrity fell below 50% 12313 | -7/Garrison | Garrison Relay disabled 12392 | -7/Garrison | Build established: Scavenger-Skirmisher 12629 | -7/Garrison | Entered Factory 13066 | -7/Factory | Build established: Skirmisher 13431 | -7/Factory | Discovered exit to Storage (range 13) 13484 | -7/Factory | Garrison activated, responded to threat 13565 | -7/Factory | Discovered new exit (range 4) 14322 | -7/Factory | Discovered new exit (range 15) 14794 | -7/Factory | Lost 3 parts (1p1n1u) 15521 | -7/Factory | Entered Lower Caves 15532 | -7/Lower Caves | Met a Warlord Commander 15533 | -7/Lower Caves | Learned location of Warlord (-4) 15534 | -7/Lower Caves | Warlord Commander delivered Encrypted Comm Array 15535 | -7/Lower Caves | Found Encrypted Comm Array 15808 | -7/Lower Caves | Build established: Gunner 15902 | -7/Lower Caves | Learned Factory machine intel 16019 | -7/Lower Caves | Discovered new exit (range 8) 16055 | -7/Lower Caves | Learned location of 1 exit from Factory 16440 | -7/Lower Caves | Entered another Lower Caves area 16442 | -7/Lower Caves | Attracted the attention of an 0b10 outpost 16442 | -7/Lower Caves | Core integrity fell below 20% 16526 | -7/Lower Caves | Lost 4 allies 16746 | -7/Lower Caves | Discovered new exit (range 13) 16768 | -7/Lower Caves | Encountered a Warlord checkpoint 16844 | -7/Lower Caves | Learned Factory terminal intel 17339 | -7/Lower Caves | Discovered new exit (range 12) 17433 | -7/Lower Caves | Entered Data Miner 17433 | -7/Data Miner | Accompanied by 1 ally 17436 | -7/Data Miner | Discovered new exit (range 6) 17457 | -7/Data Miner | Met Data Miner 17479 | -7/Data Miner | Learned location of Section 7 (-3) 17479 | -7/Data Miner | Acquired the access code to Warlord's prototype stash 17494 | -7/Data Miner | Received God Mode back door access code from Data Miner 17544 | -7/Data Miner | Entered Proximity Caves 17544 | -6/Proximity Caves | Accompanied by 1 ally 17646 | -6/Proximity Caves | Escorted by Enhanced Grunt 17647 | -6/Proximity Caves | Spotter reported a threat 18159 | -6/Proximity Caves | Discovered new exit (range 9) 18274 | -6/Proximity Caves | Entered Factory 18274 | -6/Factory | Accompanied by 2 allies 18274 | -6/Factory | Evolved 2 slots: Utility x2 18275 | -6/Factory | Identified exit to Lower Caves 18277 | -6/Factory | Loaded intel: 273 machine locations 18278 | -6/Factory | Loaded intel: 27 terminal locations 18327 | -6/Factory | Found Hvy. Reactive Plating 18493 | -6/Factory | Discovered new exit (range 15) 18530 | -6/Factory | Garrison activated, responded to threat 18580 | -6/Factory | Build established: Tank 18902 | -6/Factory | Local machine network offline 18960 | -6/Factory | Build established: Hacker-Skirmisher 19288 | -6/Factory | Joined by Warlord Infantry squad 19494 | -6/Factory | Identified exit to Factory 19829 | -6/Factory | Discovered new exit (range 14) 19947 | -6/Factory | Identified exit to Extension 19949 | -6/Factory | Entered Extension 20018 | -6/Extension | Rescued a captive Derelict 20227 | -6/Extension | Rescued a captive Derelict 20237 | -6/Extension | Rescued a captive Derelict 20253 | -6/Extension | Rescued a captive Derelict 20356 | -6/Extension | Rescued a captive Derelict 20357 | -6/Extension | Rescued a captive Derelict 20627 | -6/Extension | Spotted B-75 Beast 20637 | -6/Extension | Spotted B-75 Beast 20656 | -6/Extension | Allies destroyed B-75 Beast 20684 | -6/Extension | Lost 3 allies 20699 | -6/Extension | Disrupted transfer network 20744 | -6/Extension | Rescued a captive Derelict 20868 | -6/Extension | Lost 3 allies 21010 | -6/Extension | Lost 4 allies 21011 | -6/Extension | Rescued a captive Derelict 21082 | -6/Extension | Rescued A7 21139 | -6/Extension | Rescued a captive Derelict 21140 | -6/Extension | Rescued a captive Derelict 21199 | -6/Extension | Discovered exit to Factory (range 10) 21201 | -6/Extension | Discovered new exit (range 6) 21234 | -6/Extension | Entered Cetus 21234 | -6/Cetus | Accompanied by 4 allies (A7) 21239 | -6/Cetus | Acquired a Cetus Manufacturing Module code from A7 21258 | -6/Cetus | Spotted Cetus Guard 21258 | -6/Cetus | Spotted Cetus Guard 21260 | -6/Cetus | Spotted Cetus Guard 21262 | -6/Cetus | Spotted Cetus Guard 21266 | -6/Cetus | Allies destroyed Cetus Guard 21268 | -6/Cetus | Destroyed Cetus Guard 21274 | -6/Cetus | Allies destroyed Cetus Guard 21281 | -6/Cetus | Allies destroyed Cetus Guard 21411 | -6/Cetus | Started Cetus Manufacturing Module 21427 | -6/Cetus | Escorted A7 to Cetus Mainframe 21436 | -6/Cetus | Manufactured an Enhanced Grunt 21461 | -6/Cetus | Manufactured an Enhanced Grunt 21486 | -6/Cetus | Manufactured an Enhanced Grunt 21511 | -6/Cetus | Manufactured an Enhanced Grunt 21536 | -6/Cetus | Manufactured an Enhanced Grunt 21560 | -6/Cetus | Discovered new exit (range 15) 21597 | -6/Cetus | Spotted Cetus Guard 21598 | -6/Cetus | Spotted Cetus Guard 21602 | -6/Cetus | Spotted Cetus Guard 21602 | -6/Cetus | Spotted Cetus Guard 21612 | -6/Cetus | Allies destroyed Cetus Guard 21618 | -6/Cetus | Destroyed Cetus Guard 21623 | -6/Cetus | Destroyed Cetus Guard 21623 | -6/Cetus | Destroyed Cetus Guard 21643 | -6/Cetus | Found Prototype Device 21643 | -6/Cetus | Identified Exp. Thermal Shield 21654 | -6/Cetus | Lost 5 allies 21671 | -6/Cetus | Discovered exit to Factory (range 15) 21679 | -6/Cetus | Met Revision 17 21742 | -6/Cetus | Entered Archives 21742 | -6/Archives | Accompanied by 3 allies (A7) 21747 | -6/Archives | Received a hacking code to weaken MAIN.C 21807 | -6/Archives | Discovered new exit (range 16) 21874 | -6/Archives | Discovered new exit (range 16) 21901 | -6/Archives | Entered Hub_04(d) 21901 | -6/Hub_04(d) | Accompanied by 2 allies 21919 | -6/Hub_04(d) | Build established: Scavenger-Gunner 22022 | -6/Hub_04(d) | Local machine network offline 22207 | -6/Hub_04(d) | Identified exit to Garrison 22218 | -6/Hub_04(d) | Discovered exit to Factory (range 9) 22251 | -6/Hub_04(d) | First assault squad dispatched 22257 | -6/Hub_04(d) | Assimilated C-30 ARC with FLK Orb 22262 | -6/Hub_04(d) | Garrison activated, responded to threat 22389 | -6/Hub_04(d) | Discovered exit to Factory (range 20) 22404 | -6/Hub_04(d) | Network Hub disabled 22440 | -6/Hub_04(d) | Build established: Scavenger-Skirmisher 22466 | -6/Hub_04(d) | Entered Garrison 22500 | -6/Garrison | Triggered checkpoint 22534 | -6/Garrison | Garrison Relay disabled 22702 | -6/Garrison | Triggered checkpoint 22708 | -6/Garrison | Triggered checkpoint 22742 | -6/Garrison | Destroyed 12 combat bots 22907 | -6/Garrison | Discovered exit to Factory (range 15) 22950 | -6/Garrison | Triggered checkpoint 22966 | -6/Garrison | Garrison Relay disabled 23125 | -6/Garrison | Garrison Relay disabled 23126 | -6/Garrison | Triggered checkpoint 23201 | -6/Garrison | Discovered exit to Factory (range 11) 23273 | -6/Garrison | Build established: Scavenger-Tank 23374 | -6/Garrison | Rewired Striker 23376 | -6/Garrison | Rewired Striker 23570 | -6/Garrison | Triggered checkpoint 23619 | -6/Garrison | Discovered exit to Factory (range 12) 23720 | -6/Garrison | Triggered checkpoint 23748 | -6/Garrison | Garrison Relay disabled 23758 | -6/Garrison | Discovered exit to Factory (range 63) 23758 | -6/Garrison | Discovered exit to Factory (range 7) 23758 | -6/Garrison | Discovered exit to Factory (range 72) 23775 | -6/Garrison | Garrison Relay disabled 23841 | -6/Garrison | Entered Factory 23841 | -5/Factory | Accompanied by 2 allies 23841 | -5/Factory | Evolved 2 slots: Propulsion x1, Utility x1 24141 | -5/Factory | First assault squad dispatched 24142 | -5/Factory | Build established: Scavenger-Skirmisher 24159 | -5/Factory | Incoming assault squad redirected 24794 | -5/Factory | Fabricated Exp. Targeting Computer (x1) 24812 | -5/Factory | Discovered new exit (range 6) 25267 | -5/Factory | System corruption reached 10% 25308 | -5/Factory | Lost 7 parts (3n2u2w) 25722 | -5/Factory | Build established: Skirmisher 25778 | -5/Factory | Spotted B-75 Beast 25781 | -5/Factory | Assimilated B-75 Beast with FLK Orb 26038 | -5/Factory | Build established: Scavenger-Skirmisher 26488 | -5/Factory | Local machine network offline 26505 | -5/Factory | Entered Upper Caves 26511 | -5/Upper Caves | Attracted the attention of an 0b10 checkpoint 26511 | -5/Upper Caves | Lost 3 parts (2u1w) 26533 | -5/Upper Caves | Core integrity fell below 50% 26536 | -5/Upper Caves | Learned Factory trap positions 26608 | -5/Upper Caves | Encountered a Warlord checkpoint 26980 | -5/Upper Caves | Build established: Scavenger-Gunner 27108 | -5/Upper Caves | Discovered new exit (range 14) 27214 | -5/Upper Caves | Learned 4 Factory zone layouts 27439 | -5/Upper Caves | Entered another Upper Caves area 27480 | -5/Upper Caves | Encountered a Warlord checkpoint 27558 | -5/Upper Caves | Discovered new exit (range 5) 27605 | -5/Upper Caves | Spotted B-75 Beast 27623 | -5/Upper Caves | Build established: Trapper-Gunner 27890 | -5/Upper Caves | Learned Factory emergency access door positions 28261 | -5/Upper Caves | Attracted the attention of an 0b10 checkpoint 28271 | -5/Upper Caves | Discovered new exit (range 15) 28357 | -5/Upper Caves | Attracted the attention of an 0b10 outpost 28399 | -5/Upper Caves | Lost 3 parts (2u1w) 28411 | -5/Upper Caves | Destroyed 7 combat bots 28507 | -5/Upper Caves | Learned Factory machine intel 28521 | -5/Upper Caves | Entered Zhirov 28521 | -5/Zhirov | Accompanied by 2 allies 28521 | -5/Zhirov | Discovered new exit (range 3) 28553 | -5/Zhirov | Met Zhirov 28585 | -5/Zhirov | Learned location of Testing (-2) 28585 | -5/Zhirov | Learned location of Command (-1) 28600 | -5/Zhirov | Zhirov requested help retrieving the SGEMP Prototype 28630 | -5/Zhirov | Found Alien Artifact 28649 | -5/Zhirov | Found Alien Artifact 28649 | -5/Zhirov | Identified Integrated Reactor 28649 | -5/Zhirov | Installed Integrated Reactor, increased core energy generation (+10) 28757 | -5/Zhirov | Entered Proximity Caves 28757 | -4/Proximity Caves | Accompanied by 2 allies 29020 | -4/Proximity Caves | Learned Research trap positions 29023 | -4/Proximity Caves | Discovered new exit (range 7) 29211 | -4/Proximity Caves | Received a Behemoth hack from an annoying Tinkerer 29298 | -4/Proximity Caves | Entered Factory 29298 | -4/Factory | Evolved 2 slots: Power x1, Propulsion x1 29300 | -4/Factory | Loaded intel: 97 trap records 29302 | -4/Factory | Loaded intel: 247 machine locations 29619 | -4/Factory | Build established: Trapper-Skirmisher 29773 | -4/Factory | Lost 3 parts (2u1w) 29837 | -4/Factory | Found Prototype Processor 29837 | -4/Factory | Identified Exp. Terrain Scan Processor 30025 | -4/Factory | Repaired Centrium Medium Armor Plating 30136 | -4/Factory | Identified exit to Upper Caves 30168 | -4/Factory | Discovered new exit (range 16) 30267 | -4/Factory | Discovered new exit (range 11) 30591 | -4/Factory | Build established: Skirmisher 31086 | -4/Factory | Crushed by falling debris 31149 | -4/Factory | Garrison activated, responded to threat 31210 | -4/Factory | Destroyed 8 combat bots 31346 | -4/Factory | Self-destructed Last Messages --------------- 31336_ System corrupted: Matter fused (-8). 31336_ Slug penetrates Recycling Unit. 31336_ Lrn. Missile Launcher tumbles out of recycling unit. 31336_ Myomer Leg destroyed. 31336_ Slug penetrates Subcomponent Replicator. 31336_ Penetrated by Slug. 31339_ Slug penetrates Wall. 31339_ R-10 Processor suffers critical hit (Blast). 31339_ Destroyed Hpw. Tractor Beam. 31339_ R-10 Processor destroyed. 31339_ Penetrated by Slug. 31340_ Slug penetrates Wall. 31342_ Penetrated by Slug. 31342_ Slug penetrates H-77 Assassin. 31342_ Slug penetrates Wall. 31346_ Critical hit (Destroy). 31346_ Penetrated by Slug. Map ----- +----------------------------------------------------+ | ??????""""???????????????????????????????????????? | | ??????""""???????????????????????????????????????? | | ??????""""???????????????????????????????????????? | | ??????""""???????????????????????????????????????? | | ?????????????????????????????"""?????????????????? | | ??????""""????????????????????Y"?????????????????? | | ??????""""???????????????????"""?????????????????? | | ???+??""""????????????"""????????????????????????? | | ??????""""????????????"""????????????????????????? | | ??????""""????????????"""????????????????????????? | | ??????""""???????????????????????????????????????? | | ??????""""????????????"""?"""????????????????????? | | ??????????????????????"""?"""????????????????????? | | ??????????????????????"""?"""????????????????????? | | ?????????????w???????????????????????????????????? | | ?????????????????????????????????????????????????? | | ?????????????????????????????????????????????????? | | ?????????????????????????????????????????????????? | | ???????????????????w?????????????????????????????? | | ?????????????????????????????????????????????????? | | ?????????????????????????????????????????????????? | | ?????????????????????????????????????????????????? | | ?????????????????????????????????????????????????? | | ??????????????????????????##?????????????????????? | | ???????????????###########;#????????????????????"" | | ?????????????# @#?????????????????????"" | | ?????????????# "" "" ;#????????????????????"" | | ?????????????# "" "" ;#?????????????????????? | | ?????????"""?# """ "" ;#????????????????????"" | | ?????????"""?# """ " ;#????????????????????"" | | ?????????"""?# ! """ " h;#????????????????????"" | | ?????????????# ;#?????????????????????? | | ?????????"""?#! ##????????????Y????????? | | ?????????"""?# ""#??????????????????????? | | ?????????"""?# "#?????????""???????????? | | ?????????????# =! h"]#?????????""???????????? | | ?????????????# %!% / ###???????"T???????????? | | ?????????????###/#####;###""#######?""???????????? | | ????????????? x +?""???????????? | | ????^^??????? w x #??????????????? | | ????^^??????? +??????????????? | | ????^^??????? #??????????????? | | ?????????????? #??????######### | | ??????????????#########+#####"### #??????# """T | | ??????????????????????# ##? #??????# """ | | ??????????????????????# #??T #??????# | | """???????????????????#! "#??# ???????# | | """???????????????????# ""#??# #??????# | | """???????????????????# ""#??# ??????# """ "" | | ??????????????????????# ""#??# ??????# """ "" | +----------------------------------------------------+ Best States ------------- Heat Dissipation 67 Coolant Potential 100 Energy Generation 49 Energy Capacity 520 Matter Stores 550 Matter Capacity 550 Sight Range 16 Terrain Scan Range 20 Terrain Scan Density 1010 Jamming Range 14 Cloak Strength 2 Base Temperature (-) 200 Armor Coverage 1200 Resistance: KI 40 Resistance: TH 30 Propulsion Shielding 90 Evasion (%) 55 Targeting Accuracy 12 Recoil Reduction 5 Matter Filtering 50 Particle Charging 25 Kinecelleration 40 Offensive Hacking 24 Trap Extractor Capacity 6 Item Schematics ----------------- KE Penetrator | -7/Factory | Hacked Combat Drone Bay | -7/Data Miner | Free Lgt. Regenerative Plating | -7/Data Miner | Free Cld. Aerolev Unit | -7/Data Miner | Free Exp. Targeting Computer | -7/Data Miner | Free Imp. Lightning Gun | -7/Data Miner | Free Gyrokinetic Inverter | -7/Data Miner | Free Imp. Thermal Shield | -7/Data Miner | Free Enh. Gauss Cannon | -7/Data Miner | Free Linear Gravjet | -7/Data Miner | Free Lrn. Terrain Scanner | -7/Data Miner | Free Adv. Target Analyzer | -7/Data Miner | Free Centrium Medium Armor Plating | -5/Factory | Scanalyzed Centrium Heavy Treads | -5/Factory | Scanalyzed Assault Drone Bay | -5/Zhirov | Free Exp. Heat Sink | -5/Zhirov | Free Exp. Optical Array | -5/Zhirov | Free Imp. Arc Thrower | -5/Zhirov | Free Robot Schematics ------------------ M-28 Smith | -7/Data Miner | Free H-55 Commando | -7/Data Miner | Free B-48 Gladiator | -7/Data Miner | Free R-10 Processor | -7/Data Miner | Free A-15 Conveyor | -7/Data Miner | Free G-50 Soldier | -7/Data Miner | Free S-27 Virus | -7/Data Miner | Free Fabricated ------------ KE Penetrator | x2 | -7/Factory KE Penetrator | x2 | -7/Factory Exp. Targeting Computer | x1 | -5/Factory Alien Tech Used ----------------- Integrated Reactor Achievements -------------- None Challenges ------------ None Game ------ Seed LightpackTerrainFacilitator Manual? 0 Play Time 05:29:20 Cumulative 129.5 hours Start 2025.01.13 @ 17:12:04 End 2025.01.14 @ 18:52:02 Sessions 7 Manual Loads 0 Difficulty Rogue Special Mode None Game No. 27 Rogue 27 Adventurer 0 Explorer 0 Win Type - Total 6 Types 3/0/2/1/0/0/0/0/0 Lore% 46 Gallery% 59 Achievement% 60 Wizard Run 0 Options --------- Layout 1 ASCII 0 Keyboard 0 Movement Mouse Keybinds 0 Fullscreen 1 Font 24/Smallcaps Map View 50x35 Zoom Use 0% Tactical HUD 1 Map Filters NONE Filters NONE Steam 1 RUN: a2143840-9c3d-4a4e-8d11-5e7f7bf7aa64